Cogmind - Beta 15 --- EXPLORER MODE // 2025.10.01 @ 18:08:59 // Winter2022/Polymind Player: RR-3MY Result: Self-destructed Performance ------------- Evolutions (4) 2000 Regions Visited (5) 1000 Robots Destroyed (8) 40 Value Destroyed (338) 338 Prototype IDs (5) 100 Alien Tech Used (0) 0 Bonus (1598) 1598 TOTAL SCORE: 5006 Bonus ------- Polymind Skill 1598 Cogmind --------- Core Integrity 637/850 Matter 0/0 Energy 190/190 System Corruption 0% Temperature Cool (0) Movement Treading (160) Location -6/Factory Parts ------- > --- POWER (1) -------- Improved Ion Engine > --- PROPULSION (2) --- Medium Treads Medium Treads > --- UTILITY (3) ------ Large Storage Unit Advanced Weight Redist. System Transport Network Coupler > --- WEAPON (0) ------- (None) > --- INVENTORY (10) --- Cold Fusion Reactor Faulty Cold Fusion Reactor Improved Airjet Faulty Rocket Array Peak State ------------ > --- POWER ------------ Improved Ion Engine > --- PROPULSION ------- Medium Treads Medium Treads > --- UTILITY ---------- Large Storage Unit Advanced Weight Redist. System Transport Network Coupler > --- WEAPON ----------- (None) > --- INVENTORY -------- Cold Fusion Reactor Cold Fusion Reactor Improved Airjet Rocket Array [Rating: 17] Favorites ----------- Power Improved Ion Engine Engine Improved Ion Engine Power Core Light Nuclear Core Propulsion Light Treads Treads Light Treads Leg Aluminum Leg Wheel Wheel Hover Unit Hover Unit Flight Unit VTOL Module Utility Heat Sink Device Heat Sink Storage Small Matter Pod Processor Transport Network Coupler Hackware Hacking Suite Protection Light Armor Plating Weapon Beam Rifle Energy Gun Beam Rifle Ballistic Gun Heavy Assault Rifle Special Weapon Mining Laser Special Melee Weapon Datajack Build | -11 -10 -10 -8 -7 -6 ------- Run | Yrd Mat Sub Mat Fac Fac Slots Evolved . | . . . . . . Power . | . . . . . . Propulsion . | . . . . . . Utility . | . . . . . . Weapon . | . . . . . . Parts Attached . | . . . . . . Power . | . . . . . . Engine . | . . . . . . Core . | . . . . . . Reactor . | . . . . . . Propulsion . | . . . . . . Treads . | . . . . . . Leg . | . . . . . . Wheel . | . . . . . . Hover . | . . . . . . Flight . | . . . . . . Utility . | . . . . . . Device . | . . . . . . Storage . | . . . . . . Processor . | . . . . . . Hackware . | . . . . . . Protection . | . . . . . . Artifact . | . . . . . . Weapon . | . . . . . . Energy Gun . | . . . . . . Energy Cannon . | . . . . . . Ballistic Gun . | . . . . . . Ballistic Cannon . | . . . . . . Launcher . | . . . . . . Special Weapon . | . . . . . . Impact Weapon . | . . . . . . Slashing Weapon . | . . . . . . Piercing Weapon . | . . . . . . Special Melee Weapon . | . . . . . . Unidentified Prototypes . | . . . . . . Parts Lost 4 | . . . . 1 3 Power 1 | . . . . . 1 Propulsion 2 | . . . . . 2 Utility 1 | . . . . 1 . Weapon . | . . . . . . Highest Loss Streak 3 | . . . . 1 3 To Critical Strikes . | . . . . . . Average Backups . | . . . . . 2 Power . | . . . . . 1 Propulsion . | . . . . . . Utility . | . . . . . . Weapon . | . . . . . . Tool/Special . | . . . . . . Unused Backups 5 | . . . 1 . 4 Power 2 | . . . . . 2 Propulsion 1 | . . . . . 1 Utility . | . . . . . . Weapon 2 | . . . 1 . 1 Tool/Special . | . . . . . . Average Slot Usage (%) 93 | . 100 100 100 79 67 Engine 13 | . 18 12 13 19 8 Treads 17 | . . 23 15 . 18 Leg 1 | . 2 2 . . . Wheel 6 | . 23 . 10 30 . Hover 2 | . 12 . 2 7 . Device 20 | . 24 24 26 . 8 Storage 2 | . . . . 14 8 Processor 1 | . 6 . 1 . 8 Protection 7 | . . 11 7 . . Energy Gun 8 | . 1 12 7 . . Ballistic Gun 8 | . . 11 7 . 7 Special Weapon 1 | . 11 . 5 . . Peak Build Rating 17 | 8 8 11 11 7 17 Average Rating 9 | 5 7 10 9 4 10 On Entrance 5 | . 8 5 11 7 . Naked Turns 47 | . 1 1 1 13 31 Heaviest Build 27 | 6 7 18 18 4 27 Greatest Support 65 | 20 20 40 40 20 65 Greatest Overweight (x) 2 | . . . . . 2 Average Overweight (x) . | . . . . . . Largest Inventory Capacity 10 | . 1 1 1 1 10 Average Capacity 1 | . . . . . 5 Most Carried 4 | . . 1 1 . 4 Average Carried . | . . . . . 2 Final Capacity 10 | . 1 1 1 . 10 Final Carried 4 | . . 1 . . 4 Class Distribution -------------------- 61% | Sentry 9% | Tunneler 7% | Worker 6% | Hauler 4% | Swarmer 3% | Grunt Dominant Class ---------------- Tunneler | -10/Materials Sentry | -10/Subcaves Sentry | -8/Materials Worker | -7/Factory Hauler | -6/Factory Resources | -11 -10 -10 -8 -7 -6 ----------- Run | Yrd Mat Sub Mat Fac Fac Matter Collected 117 | . . 36 . . 81 Remotely . | . . . . . . Salvage Created 250 | . . 151 . . 99 Parts 24 | . . 17 . . 7 Haulers Intercepted . | . . . . . . Recyclers Shooed . | . . . . . . Parts Field Recycled . | . . . . . . Retrieved Matter . | . . . . . . Parts Self-Destructed . | . . . . . . Prevented . | . . . . . . Kills | -11 -10 -10 -8 -7 -6 ------- Run | Yrd Mat Sub Mat Fac Fac Combat Hostiles Destroyed 8 | . . 5 . . 3 Guns 8 | . . 5 . . 3 Classes Destroyed 3 | . . 2 . . 1 Swarmer 1 | . . . . . 1 Grunt 3 | . . 1 . . 2 Subdweller 4 | . . 4 . . . Best Kill Streak 2 | . . 2 . . 2 Combat Bots Only 2 | . . 2 . . 2 Max Kills in Single Turn 1 | . . 1 . . 1 Gunslinging . | . . . . . . Exploded . | . . . . . . Melee . | . . . . . . Uniques/NPCs Destroyed . | . . . . . . Combat | -11 -10 -10 -8 -7 -6 -------- Run | Yrd Mat Sub Mat Fac Fac Hostile Shots Fired 165 | . . 31 16 60 58 Missed 55 | . . 5 6 26 18 Hits 110 | . . 26 10 34 40 Projectile 110 | . . 26 10 34 40 Critical Strikes 5 | . . 1 1 . 3 Damage Taken 1114 | . . 443 79 135 457 Core 382 | . . 91 9 69 213 Absorbed by Shields 9 | . . . . 9 . Ignored by Resistances 697 | . . 261 49 112 275 Core Remaining (%) 87 | 100 . 63 98 90 . Volleys Fired 47 | 2 . 24 . . 21 Largest 2 | 1 . 2 . . 1 Hottest 100 | 100 . 79 . . 23 Shots Fired 58 | 2 . 35 . . 21 Gun 56 | . . 35 . . 21 Cannon . | . . . . . . Launcher . | . . . . . . Special 2 | 2 . . . . . Kinetic 32 | . . 11 . . 21 Thermal 26 | 2 . 24 . . . Explosive . | . . . . . . Electromagnetic . | . . . . . . Robot Hit Streak 28 | . . 27 . . 28 Robot Miss Streak 1 | . . 1 . . 1 Penetration Max . | . . . . . . Secondary Targets . | . . . . . . Shots Hit Robots 48 | . . 29 . . 19 Core Hits 19 | . . 10 . . 9 Critical Kills . | . . . . . . Critical Parts Destroyed . | . . . . . . Critical Strikes 2 | . . 2 . . . Burn 2 | . . 2 . . . Melee Attacks . | . . . . . . Impact . | . . . . . . Slashing . | . . . . . . Piercing . | . . . . . . Sneak Attacks . | . . . . . . Combat Hostiles . | . . . . . . Follow-up Attacks . | . . . . . . Damage Inflicted 675 | . . 397 . . 278 Guns 675 | . . 397 . . 278 Cannons . | . . . . . . Explosions . | . . . . . . Melee . | . . . . . . Ramming . | . . . . . . Kinetic 404 | . . 126 . . 278 Thermal 271 | . . 271 . . . Explosive . | . . . . . . Electromagnetic . | . . . . . . Impact . | . . . . . . Slashing . | . . . . . . Piercing . | . . . . . . Highest Corruption . | . . . . . . Average Corruption . | . . . . . . Corruption Purged . | . . . . . . Corruption Blocked . | . . . . . . Overload Shots . | . . . . . . Overflow Damage . | . . . . . . Projectiles . | . . . . . . Explosions . | . . . . . . Melee . | . . . . . . Knockbacks . | . . . . . . Impact . | . . . . . . Kinetic . | . . . . . . Secondary . | . . . . . . Self-Inflicted Damage . | . . . . . . Shots . | . . . . . . Rammed 1 | . . 1 . . . Targets Rammed 1 | . . 1 . . . Kicked . | . . . . . . Crushed . | . . . . . . Highest Temperature 168 | 155 . 168 22 13 55 Average Temperature 37 | 100 . 83 9 5 17 Received Heat Transfer 723 | . . 402 54 60 207 Siege Activations . | . . . . . . Martial Activations . | . . . . . . Shielding Activations . | . . . . . . Robots Disrupted . | . . . . . . Combat Hostiles . | . . . . . . Robots Corrupted . | . . . . . . Combat Hostiles . | . . . . . . Parts Fried . | . . . . . . Impact Corruptions . | . . . . . . Robots Melted . | . . . . . . Combat Hostiles . | . . . . . . Parts Melted 2 | . . 2 . . . Heat Transferred 805 | . . 805 . . . Parts Sabotaged . | . . . . . . Parts Stolen . | . . . . . . Parts Stripped . | . . . . . . Power Chain Reactions . | . . . . . . Alert | -11 -10 -10 -8 -7 -6 ------- Run | Yrd Mat Sub Mat Fac Fac Maximum Alert Level . | . . . . . . Low Security (%) 100 | 100 100 . 100 100 100 Level 1 . | . . . . . . Level 2 . | . . . . . . Level 3 . | . . . . . . Level 4 . | . . . . . . Level 5 . | . . . . . . High Security . | . . . . . . Max Security . | . . . . . . Peak Influence 35 | . 10 . 15 . 35 Initial . | . . . . . . Average 1 | . . . . . 4 Influence Increases 132 | . 10 20 22 . 80 Destroy 0b10 Robot/C 80 | . . 20 . . 60 Destroy Leader 20 | . . . . . 20 Successful Hack 17 | . 10 . 7 . . Partial Spotted 15 | . . . 15 . . Influence Decreases 132 | . 10 20 22 . 80 Time Decay 113 | . 10 20 22 . 61 Lost Part 15 | . . . . . 15 Miscellaneous 4 | . . . . . 4 Squads Dispatched 1 | . . . . . 1 Investigation 1 | . . . . . 1 Extermination . | . . . . . . Reinforcement . | . . . . . . Assault . | . . . . . . Garrison . | . . . . . . Intercept . | . . . . . . Searches Triggered . | . . . . . . Construction Impeded . | . . . . . . Haulers Reinforced . | . . . . . . Active Scanning Responses . | . . . . . . Cargo Convoy Interrupts . | . . . . . . Stealth | -11 -10 -10 -8 -7 -6 --------- Run | Yrd Mat Sub Mat Fac Fac Distress Signals 1 | . . . . . 1 Communications Jammed . | . . . . . . Distress Signals . | . . . . . . Times Spotted 27 | . . 5 10 2 10 Peak Tracking Total 5 | . . 2 4 2 5 Tactical Retreats . | . . . . . . Traps | -11 -10 -10 -8 -7 -6 ------- Run | Yrd Mat Sub Mat Fac Fac Traps Triggered 1 | . . . . 1 . Indirectly . | . . . . . . Trap Hack Attempts . | . . . . . . Triggered . | . . . . . . Disarmed . | . . . . . . Reprogrammed . | . . . . . . Reused . | . . . . . . Traps Extracted . | . . . . . . Installed . | . . . . . . Triggered . | . . . . . . Machines | -11 -10 -10 -8 -7 -6 ---------- Run | Yrd Mat Sub Mat Fac Fac Machines Disabled . | . . . . . . Max in Single Turn . | . . . . . . Machines Repaired . | . . . . . . Machines Dismantled . | . . . . . . Machines Sabotaged . | . . . . . . Overloaded Fab Kills . | . . . . . . Hacking | -11 -10 -10 -8 -7 -6 --------- Run | Yrd Mat Sub Mat Fac Fac Machines Accessed 4 | . 2 . 1 . 1 Terminals 3 | . 2 . 1 . . Fabricators . | . . . . . . Repair Stations . | . . . . . . Recycling Units . | . . . . . . Scanalyzers . | . . . . . . Garrison Access 1 | . . . . . 1 Total Hacks 16 | . 9 . 5 . 2 Successful 9 | . 5 . 4 . . Failed 7 | . 4 . 1 . 2 Catastrophic 2 | . 1 . . . 1 Database Lockouts . | . . . . . . Manual 7 | . 3 . 3 . 1 Terminals 14 | . 9 . 5 . . Fabricators . | . . . . . . Repair Stations . | . . . . . . Recycling Units . | . . . . . . Scanalyzers . | . . . . . . Garrison Access 2 | . . . . . 2 Terminal Hacks 5 | . 4 . 1 . . Robot Analysis 1 | . 1 . . . . Prototype ID Bank 1 | . . . 1 . . Locate Traps 1 | . 1 . . . . Dispatch Records 1 | . 1 . . . . Registered Components 1 | . 1 . . . . Fabricator Hacks . | . . . . . . Repair Station Hacks . | . . . . . . Recycling Unit Hacks . | . . . . . . Scanalyzer . | . . . . . . Garrison Access Hacks . | . . . . . . Unauthorized Hacks 4 | . 1 . 3 . . Terminals 4 | . 1 . 3 . . Botnet 2 | . 1 . 1 . . Operators 1 | . . . 1 . . Skim 1 | . . . 1 . . Fabricators . | . . . . . . Repair Stations . | . . . . . . Recycling Units . | . . . . . . Scanalyzers . | . . . . . . Garrison Access . | . . . . . . Data Cores Recovered . | . . . . . . Used . | . . . . . . Hacking Detections 3 | . 2 . . . 1 Full Trace Events 1 | . . . . . 1 Feedback Events . | . . . . . . Feedback Blocked . | . . . . . . Robot Schematics Acquired . | . . . . . . Robots Built . | . . . . . . Authchips . | . . . . . . Time . | . . . . . . Total Robot Build Rating . | . . . . . . Part Schematics Acquired . | . . . . . . Parts Built . | . . . . . . Authchips . | . . . . . . Time . | . . . . . . Total Part Build Rating . | . . . . . . Parts Repaired . | . . . . . . Time . | . . . . . . Parts Recycled . | . . . . . . Recycled Matter . | . . . . . . Retrieved Matter . | . . . . . . Retrieved Components . | . . . . . . Parts Scanalyzed . | . . . . . . Part Schematics Acquired . | . . . . . . Parts Damaged . | . . . . . . Bothacking | -11 -10 -10 -8 -7 -6 ------------ Run | Yrd Mat Sub Mat Fac Fac Used RIF Installer . | . . . . . . Robots Hacked 11 | . 3 1 2 1 4 Non-combat 7 | . 2 . 2 1 2 Combat 4 | . 1 1 . . 2 Robot Hacks Applied 19 | . 4 1 3 1 10 find_chute 1 | . . . . 1 . map_walls 1 | . 1 . . . . find_fabricator 2 | . . . . . 2 find_dsf 2 | . . . . . 2 locate_stockpiles 2 | . . . . . 2 find_terminals 1 | . . . 1 . . map_route 2 | . 1 . 1 . . mark_security 2 | . 1 . 1 . . find_shortcuts 4 | . 1 1 . . 2 find_garrison 2 | . . . . . 2 Relay Couplers Released . | . . . . . . Fabnet Peak Effective % . | . . . . . . Robots Rewired . | . . . . . . Allies Hacked . | . . . . . . Hacks Repelled . | . . . . . . Allies | -11 -10 -10 -8 -7 -6 -------- Run | Yrd Mat Sub Mat Fac Fac Total Allies . | . . . . . . Largest Group . | . . . . . . Highest-Rated Group . | . . . . . . Highest-Rated Ally . | . . . . . . Total Orders . | . . . . . . Ally Attacks . | . . . . . . Total Damage . | . . . . . . Kills . | . . . . . . Allies Corrupted . | . . . . . . Allies Melted . | . . . . . . Intel | -11 -10 -10 -8 -7 -6 ------- Run | Yrd Mat Sub Mat Fac Fac Active Infowar (turns) 407 | 18 178 . 71 . 140 Optics 59 | . 49 . 10 . . Terrain 208 | 18 129 . 61 . . Structural 6 | . 6 . . . . Seismic 202 | 18 123 . 61 . . T.N.C. 140 | . . . . . 140 Robot Analysis Total 11 | 1 4 1 2 1 2 Derelict Logs Recovered . | . . . . . . Drone Launches . | . . . . . . Drone Recoveries . | . . . . . . Exploration | -11 -10 -10 -8 -7 -6 ------------- Run | Yrd Mat Sub Mat Fac Fac Turns Passed 2040 | 25 190 1187 184 201 253 Spaces Moved 1575 | 24 185 701 167 279 219 Core 172 | 12 3 1 1 29 126 Treads 829 | . . 677 65 . 87 Legs 33 | . 10 23 . . . Wheels 364 | 12 83 . 75 194 . Hover 171 | . 89 . 26 56 . Flight 6 | . . . . . 6 Fastest Speed 32 | 50 50 50 50 50 32 Average Speed 117 | 65 70 158 107 72 96 Slowest Speed 160 | 80 120 160 160 80 160 Overloaded Moves . | . . . . . . Propulsion Burnouts . | . . . . . . Robots Hopped . | . . . . . . Potential Cave-ins . | . . . . . . Cave-ins Triggered . | . . . . . . Exploration Rate (%) 16 | 3 37 21 20 8 7 Regions Visited 5 Branch Regions 1 Pre-discovered Areas . | . . . . . . Known Exits Taken 5 | 1 1 1 1 1 . Unknown Exits Taken . | . . . . . . Scrap Searched 3 | . . 3 . . . Spaces Dug . | . . . . . . Terrain Destroyed . | . . . . . . Melee . | . . . . . . Projectile . | . . . . . . AOE . | . . . . . . Terrain Rammed . | . . . . . . Walls Destroyed . | . . . . . . Machines Disabled . | . . . . . . Actions | -11 -10 -10 -8 -7 -6 --------- Run | Yrd Mat Sub Mat Fac Fac Total 1704 | 27 245 741 171 278 242 Wait 22 | 2 . 15 5 . . Move 1570 | 23 184 700 166 278 219 Hop . | . . . . . . Pick Up 1 | . . 1 . . . Fast Attach . | . . . . . . Attach . | . . . . . . Detach . | . . . . . . Swap . | . . . . . . Drop . | . . . . . . Fire 47 | 2 . 24 . . 21 Melee . | . . . . . . Ram . | . . . . . . Kick . | . . . . . . Crush 1 | . . 1 . . . Escape Stasis . | . . . . . . Rewire 2 | . . . . . 2 Trap . | . . . . . . Miscellaneous 61 | . 61 . . . . Route ------- -11/Scrapyard -10/Materials -10/Subcaves -8/Materials (discovered 2 exits: *Fac / *Sto) -7/Factory -6/Factory History --------- Turn | Location | Event 4 | -11/Scrapyard | Identified exit to Materials 4 | -11/Scrapyard | Discovered exit to Materials (range 16) 26 | -11/Scrapyard | Entered Materials 135 | -10/Materials | Identified exit to Subcaves 135 | -10/Materials | Discovered exit to Subcaves (range 3) 216 | -10/Materials | Entered Subcaves 217 | -10/Subcaves | Approached by a straggling Scientist 658 | -10/Subcaves | Identified exit to Materials 658 | -10/Subcaves | Discovered exit to Materials (range 8) 1403 | -10/Subcaves | Entered Materials 1429 | -8/Materials | Identified exit to Storage 1429 | -8/Materials | Discovered exit to Storage (range 12) 1573 | -8/Materials | Identified exit to Factory 1573 | -8/Materials | Discovered exit to Factory (range 17) 1587 | -8/Materials | Entered Factory 1786 | -7/Factory | Identified exit to Factory 1786 | -7/Factory | Discovered exit to Factory (range 4) 1788 | -7/Factory | Entered another Factory area 1965 | -6/Factory | Lost 3 parts (1p2n) 2041 | -6/Factory | Self-destructed Last Messages --------------- 01934_ Lgt. Nuclear Core destroyed. 01936_ Acquired 13 Protomatter. 01946_ G-50 Soldier destroyed. 01948_ Acquired 38 Protomatter. 01950_ G-67 Veteran destroyed. 01952_ Acquired 81 matter. 01981_ Released control of S-27 Virus. 01981_ Attempting to rewire S-27 Virus. 01981_ S-27 Virus is rebooting, system inaccessible. 01982_ Attempting to rewire S-27 Virus. 01982_ S-27 Virus is rebooting, system inaccessible. 01982_ S-27 Virus reactivates. 01983_ Took control of S-27 Virus. 01984_ Released control of S-27 Virus. 01986_ Took control of A-15 Conveyor. 02036_ Connecting with Garrison Access... 02036_ ALERT: Suspicious activity at Garrison Access F002. Dispatching Investigation squad. Map ----- +----------------------------------------------------+ | | | | | | | | | | | | | | | | | | | | | | | | | | | | | ######???????????????????????????????????????????? | | #???????????????????????????????????????????? | | " #???????????????????????????????????????????? | | " #???????????????????????????????????????????? | | " #???????????????????????????????????????????? | | #???????????????????????????????????????????? | | " #???????????????????????????????????????????? | | " #???????????????????????????????????????????? | | " #????????????############???????????????????? | | #????????????# ""G"" ! #???????????????????? | | ######????????????# "" "" #???????????????????? | | #???############### A #???????????????????? | | #???# ## """ """ #???????????????????? | | #???# ## """ """ #???????????????????? | | #???# !!= ## """ """ #???????????????????? | | #???# !!= ## #???????????????????? | | #???# !] ## """ """ #???????????????????? | | #???# ## """ """ ##############??????? | | #???# ## """ """ # #??????? | | #???# ## # ######## | | #???# ## """ """ # # | | #???# #??""" """ # # | | #???# ## """ """ # # """ " | | #???# ## # # """ " | | ###########+##############+### # """ " | | [ # | | # """ " | | # """ " | | " """ """ """ """ """ """ + """ " | | " """ """ """ """ """ """ # | | " """ """ """ """ """ """ #### #### # | | A #??# #??# # | | " """ """ """ """ """ """ = #??# #??# ######## | | " """ """ """ """ """ """ #??# #??# # | | " """ """ """ """ """ """ #??# #??# # | | ? ? ? ? #??# #??# # | +----------------------------------------------------+ Best States ------------- Heat Dissipation 42 Energy Generation 19 Energy Capacity 215 Matter Stores 100 Matter Capacity 100 Sight Range 18 Terrain Scan Range 16 Terrain Scan Density 10 Additional Mass Support 9 Armor Coverage 150 Resistance: KI 35 Resistance: TH 35 Resistance: EX 85 Resistance: EM 35 Resistance: I 60 Resistance: S 35 Resistance: P 35 Evasion (%) 55 Recoil Reduction 2 Offensive Hacking 30 Item Schematics ----------------- None Robot Schematics ------------------ None Fabricated ------------ Nothing Repaired ---------- Nothing Alien Tech Used ----------------- None Achievements -------------- Universal Adapter Challenges ------------ None Polymind | -11 -10 -10 -8 -7 -6 ---------- Run | Yrd Mat Sub Mat Fac Fac Hosts 14 | 1 4 1 3 1 4 Combat Hostiles 4 | . 1 1 . . 2 Allies . | . . . . . . Unique Host Classes 9 | 1 3 1 1 1 2 Average Host Suspicion 44 | 54 12 40 57 48 81 Unsuspicious Activity 601 | 2 315 231 7 35 11 Returns to Shadow . | . . . . . . Fuzzy Dispatches . | . . . . . . Protomatter Created 126 | . . 75 . . 51 Used 141 | 5 37 23 33 5 38 Decayed 5 | . . 5 . . . Highest Spend 23 | 5 15 23 23 5 14 Top 5 Hosts by Kills: Y-45 Defender (-10/Subcaves: 4) S-27 Virus (-6/Factory: 3) G-34 Mercenary (-10/Materials: 1) Game ------ Seed SpreadHardlightWheel Manual? 0 Play Time 00:20:37 Cumulative 65.0 hours Start 2025.09.30 @ 19:39:48 End 2025.10.01 @ 18:08:59 Sessions 3 Manual Loads 0 Difficulty Explorer Special Mode Winter2022/Polymind Game No. 13 Rogue 0 Adventurer 3 Explorer 10 Win Type - Total 8 Types 4/1/1/1/0/0/0/0/0/1 Lore% 45 Gallery% 36 Achievement% 51 Wizard Run 0 Options --------- Layout 2 ASCII 0 Keyboard 0 Movement Mouse Keybinds 0 Fullscreen 1 Font 24/Smallcaps Map View 50x44 Zoom Use 0% Tactical HUD 1 Map Filters NONE Filters NONE Steam 1 RUN: 2809eca8-ae8c-4c39-995d-f8c2875102de